[Event "Early-Titled-Tuesday-Blitz-May-07-2024"]
[Site "Chess.com"]
[Date "2024.05.07"]
[Round "11"]
[White "LeoWin2012"]
[Black "subham777"]
[Result "1/2-1/2"]
[WhiteElo "2335"]
[BlackElo "2465"]
[TimeControl "180+1"]
[EndTime "10:15:19 PDT"]
[Termination "Game drawn by repetition"]

1. b3 {[%clk 0:03:00.9]} 1... d5 {[%clk 0:02:59.3]} 2. Bb2 {[%clk 0:03:01.8]}
2... Nf6 {[%clk 0:02:59.1]} 3. Nf3 {[%clk 0:02:59.6]} 3... e6 {[%clk 0:02:58.9]}
4. e3 {[%clk 0:02:59.8]} 4... Be7 {[%clk 0:02:58.2]} 5. Be2 {[%clk 0:03:00]}
5... O-O {[%clk 0:02:56.2]} 6. O-O {[%clk 0:02:59.7]} 6... b6 {[%clk 0:02:56.9]}
7. c4 {[%clk 0:02:58.2]} 7... Bb7 {[%clk 0:02:57.2]} 8. d3 {[%clk 0:02:58.1]}
8... c5 {[%clk 0:02:56.3]} 9. Nbd2 {[%clk 0:02:58.4]} 9... Nc6 {[%clk
0:02:55.2]} 10. Qc2 {[%clk 0:02:56.1]} 10... Rc8 {[%clk 0:02:54.3]} 11. Rfd1
{[%clk 0:02:55.4]} 11... Qd7 {[%clk 0:02:52.7]} 12. Rac1 {[%clk 0:02:54.5]}
12... Rfd8 {[%clk 0:02:52.1]} 13. Qb1 {[%clk 0:02:53]} 13... h6 {[%clk
0:02:50.8]} 14. Ne5 {[%clk 0:02:49.9]} 14... Nxe5 {[%clk 0:02:49.2]} 15. Bxe5
{[%clk 0:02:50.6]} 15... d4 {[%clk 0:02:47.9]} 16. exd4 {[%clk 0:02:49]} 16...
cxd4 {[%clk 0:02:48.8]} 17. Bf3 {[%clk 0:02:48.6]} 17... Bxf3 {[%clk 0:02:42]}
18. Nxf3 {[%clk 0:02:48]} 18... Ng4 {[%clk 0:02:38.3]} 19. Bxd4 {[%clk
0:02:47.5]} 19... Bc5 {[%clk 0:02:28]} 20. Bxc5 {[%clk 0:02:45.5]} 20... bxc5
{[%clk 0:02:27.8]} 21. d4 {[%clk 0:02:44.8]} 21... Qc7 {[%clk 0:02:20.8]} 22. d5
{[%clk 0:02:40.4]} 22... exd5 {[%clk 0:02:18.4]} 23. cxd5 {[%clk 0:02:41.3]}
23... Nf6 {[%clk 0:02:17.6]} 24. Qf5 {[%clk 0:02:39.8]} 24... Rd6 {[%clk
0:02:14.2]} 25. Ne5 {[%clk 0:02:31.4]} 25... Rcd8 {[%clk 0:02:09.2]} 26. Ng4
{[%clk 0:02:06.4]} 26... Nxg4 {[%clk 0:02:03.6]} 27. Qxg4 {[%clk 0:02:07.3]}
27... Rxd5 {[%clk 0:02:03.5]} 28. Rxd5 {[%clk 0:02:07.8]} 28... Rxd5 {[%clk
0:02:04.1]} 29. g3 {[%clk 0:02:03.8]} 29... Qe5 {[%clk 0:01:53.8]} 30. Rd1
{[%clk 0:02:02.5]} 30... Rxd1+ {[%clk 0:01:49.2]} 31. Qxd1 {[%clk 0:02:01.8]}
31... g6 {[%clk 0:01:49.7]} 32. Qc2 {[%clk 0:01:58.7]} 32... h5 {[%clk
0:01:47.9]} 33. h4 {[%clk 0:01:56.4]} 33... Qe1+ {[%clk 0:01:40.7]} 34. Kg2
{[%clk 0:01:51.6]} 34... Qe5 {[%clk 0:01:41]} 35. Kg1 {[%clk 0:01:49.1]} 35...
Kg7 {[%clk 0:01:39.2]} 36. Qc4 {[%clk 0:01:48.3]} 36... Qa1+ {[%clk 0:01:29.7]}
37. Kg2 {[%clk 0:01:46.6]} 37... Qxa2 {[%clk 0:01:30.4]} 38. Qxc5 {[%clk
0:01:43.1]} 38... Qxb3 {[%clk 0:01:30]} 39. Qxa7 {[%clk 0:01:43.5]} 39... Qd5+
{[%clk 0:01:30.1]} 40. Kg1 {[%clk 0:01:43.1]} 40... Qe4 {[%clk 0:01:28.6]} 41.
Qa1+ {[%clk 0:01:42.3]} 41... Kh7 {[%clk 0:01:22.4]} 42. Qf6 {[%clk 0:01:41.9]}
42... Qb7 {[%clk 0:01:21.3]} 43. Kh2 {[%clk 0:01:39.5]} 43... Qa7 {[%clk
0:01:21.2]} 44. Kg2 {[%clk 0:01:39]} 44... Qb7+ {[%clk 0:01:21.7]} 45. Kh2
{[%clk 0:01:39.2]} 45... Qa7 {[%clk 0:01:22.5]} 46. Qf4 {[%clk 0:01:34.3]} 46...
Kg8 {[%clk 0:01:20.1]} 47. Kg2 {[%clk 0:01:32.4]} 47... Kg7 {[%clk 0:01:18.4]}
48. Qe5+ {[%clk 0:01:31.6]} 48... f6 {[%clk 0:01:18.4]} 49. Qe4 {[%clk
0:01:30.8]} 49... Qf7 {[%clk 0:01:16.3]} 50. Qc6 {[%clk 0:01:29.9]} 50... Qe7
{[%clk 0:01:15]} 51. Kh2 {[%clk 0:01:29.1]} 51... g5 {[%clk 0:01:10]} 52. hxg5
{[%clk 0:01:27.8]} 52... fxg5 {[%clk 0:01:10.6]} 53. Qd5 {[%clk 0:01:27.3]}
53... Qf6 {[%clk 0:01:07.7]} 54. Kg2 {[%clk 0:01:26.6]} 54... Kh6 {[%clk
0:01:03.9]} 55. Qd2 {[%clk 0:01:23.4]} 55... Qc6+ {[%clk 0:01:00.7]} 56. Kh2
{[%clk 0:01:22.7]} 56... Qf6 {[%clk 0:00:59.3]} 57. Qe3 {[%clk 0:01:22.7]} 57...
Qf5 {[%clk 0:00:54.5]} 58. Kg2 {[%clk 0:01:22.9]} 58... Kg7 {[%clk 0:00:51.4]}
59. Qe7+ {[%clk 0:01:22.4]} 59... Kg6 {[%clk 0:00:50.7]} 60. Qe8+ {[%clk
0:01:22.4]} 60... Qf7 {[%clk 0:00:50.5]} 61. Qe4+ {[%clk 0:01:21.9]} 61... Kh6
{[%clk 0:00:49.5]} 62. Qe5 {[%clk 0:01:20.4]} 62... g4 {[%clk 0:00:46.5]} 63.
Qe3+ {[%clk 0:01:18.9]} 63... Kg6 {[%clk 0:00:46.5]} 64. Qb6+ {[%clk 0:01:18.6]}
64... Qf6 {[%clk 0:00:46.5]} 65. Qb1+ {[%clk 0:01:18.4]} 65... Kf7 {[%clk
0:00:45.6]} 66. Qb7+ {[%clk 0:01:18.3]} 66... Kg6 {[%clk 0:00:45]} 67. Qe4+
{[%clk 0:01:17.9]} 67... Qf5 {[%clk 0:00:44.3]} 68. Qc6+ {[%clk 0:01:18]} 68...
Kg5 {[%clk 0:00:43.6]} 69. Qc1+ {[%clk 0:01:17.3]} 69... Kf6 {[%clk 0:00:43.4]}
70. Qc6+ {[%clk 0:01:17.3]} 70... Qe6 {[%clk 0:00:41.7]} 71. Qc3+ {[%clk
0:01:16]} 71... Qe5 {[%clk 0:00:41.4]} 72. Qd3 {[%clk 0:01:13.7]} 72... Ke6
{[%clk 0:00:40.2]} 73. Qg6+ {[%clk 0:01:13]} 73... Kd5 {[%clk 0:00:40.2]} 74.
Qd3+ {[%clk 0:01:13.2]} 74... Qd4 {[%clk 0:00:34.9]} 75. Qf5+ {[%clk 0:01:12.1]}
75... Qe5 {[%clk 0:00:35.3]} 76. Qd3+ {[%clk 0:01:12.3]} 76... Ke6 {[%clk
0:00:29.8]} 77. Qg6+ {[%clk 0:01:11.8]} 77... Ke7 {[%clk 0:00:29.8]} 78. Qh7+
{[%clk 0:01:11.3]} 78... Kd6 {[%clk 0:00:30.2]} 79. Qg6+ {[%clk 0:01:11]} 79...
Kc5 {[%clk 0:00:30.2]} 80. Qc2+ {[%clk 0:01:09.4]} 80... Kb6 {[%clk 0:00:30.7]}
81. Qb3+ {[%clk 0:01:08.6]} 81... Kc7 {[%clk 0:00:29.7]} 82. Qc4+ {[%clk
0:01:07.5]} 82... Kd6 {[%clk 0:00:29.2]} 83. Kh2 {[%clk 0:01:06.4]} 83... Qf5
{[%clk 0:00:22.5]} 84. Qd4+ {[%clk 0:01:05.3]} 84... Ke6 {[%clk 0:00:22.5]} 85.
Qe3+ {[%clk 0:01:05.1]} 85... Kf7 {[%clk 0:00:22]} 86. Kg2 {[%clk 0:01:04.3]}
86... Kg6 {[%clk 0:00:21.8]} 87. Qb6+ {[%clk 0:01:03.9]} 87... Qf6 {[%clk
0:00:20.2]} 88. Qb1+ {[%clk 0:01:03.3]} 88... Qf5 {[%clk 0:00:20.5]} 89. Qb6+
{[%clk 0:01:03.5]} 89... Qf6 {[%clk 0:00:20.8]} 1/2-1/2

[Event "Early-Titled-Tuesday-Blitz-May-07-2024"]
[Site "Chess.com"]
[Date "2024.05.07"]
[Round "11"]
[White "NikFil2013"]
[Black "biveklama"]
[Result "0-1"]
[WhiteElo "2415"]
[BlackElo "2540"]
[TimeControl "180+1"]
[EndTime "10:15:22 PDT"]
[Termination "biveklama won by resignation"]

1. d4 {[%clk 0:02:57.7]} 1... d5 {[%clk 0:03:00]} 2. c4 {[%clk 0:02:57.2]} 2...
c6 {[%clk 0:02:59.9]} 3. cxd5 {[%clk 0:02:57.3]} 3... cxd5 {[%clk 0:02:59.2]} 4.
Bf4 {[%clk 0:02:57.9]} 4... Nf6 {[%clk 0:02:59.5]} 5. e3 {[%clk 0:02:58.3]} 5...
Nc6 {[%clk 0:02:59.2]} 6. Nc3 {[%clk 0:02:57.7]} 6... Bf5 {[%clk 0:02:59.3]} 7.
Qb3 {[%clk 0:02:56.7]} 7... Na5 {[%clk 0:02:59.9]} 8. Qa4+ {[%clk 0:02:56.8]}
8... Bd7 {[%clk 0:03:00.6]} 9. Qc2 {[%clk 0:02:57.1]} 9... Rc8 {[%clk
0:03:01.2]} 10. Bd3 {[%clk 0:02:56.1]} 10... e6 {[%clk 0:03:01.9]} 11. Nf3
{[%clk 0:02:55.8]} 11... Nh5 {[%clk 0:03:01.4]} 12. Bg5 {[%clk 0:02:36.7]} 12...
f6 {[%clk 0:02:58.4]} 13. Bxh7 {[%clk 0:02:25]} 13... Bb4 {[%clk 0:02:58.1]} 14.
O-O {[%clk 0:01:47]} 14... Kf8 {[%clk 0:02:11.8]} 15. Bh4 {[%clk 0:01:17.8]}
15... Nc4 {[%clk 0:01:51.2]} 16. Bg6 {[%clk 0:00:48.1]} 16... Nxb2 {[%clk
0:01:44.5]} 17. Qxb2 {[%clk 0:00:49]} 17... Bxc3 {[%clk 0:01:44.5]} 18. Qa3+
{[%clk 0:00:49.4]} 18... Qe7 {[%clk 0:01:41.4]} 19. Qxe7+ {[%clk 0:00:45.5]}
19... Kxe7 {[%clk 0:01:42.3]} 20. Rab1 {[%clk 0:00:45.4]} 20... Rh6 {[%clk
0:01:32.3]} 21. Bxh5 {[%clk 0:00:39.7]} 21... Rxh5 {[%clk 0:01:32]} 22. Rxb7
{[%clk 0:00:40.2]} 22... Ke8 {[%clk 0:01:13.5]} 23. Rc1 {[%clk 0:00:20.6]} 23...
a5 {[%clk 0:01:12.9]} 24. Rb3 {[%clk 0:00:20]} 24... Bb4 {[%clk 0:01:11.8]} 25.
Rxc8+ {[%clk 0:00:20.2]} 25... Bxc8 {[%clk 0:01:12.7]} 26. a3 {[%clk 0:00:21]}
26... Be7 {[%clk 0:01:08.5]} 27. Rb8 {[%clk 0:00:19.5]} 27... Kd7 {[%clk
0:01:08.8]} 28. Ra8 {[%clk 0:00:19.3]} 28... Bxa3 {[%clk 0:01:05.5]} 29. Rxa5
{[%clk 0:00:19.4]} 29... Bf8 {[%clk 0:01:00.9]} 30. Ra7+ {[%clk 0:00:19.3]}
30... Ke8 {[%clk 0:01:00.8]} 31. Bg3 {[%clk 0:00:18.2]} 31... Bd7 {[%clk
0:00:56.5]} 32. Ra8+ {[%clk 0:00:17.8]} 32... Kf7 {[%clk 0:00:55.6]} 33. Ra7
{[%clk 0:00:17.4]} 33... Ke8 {[%clk 0:00:56]} 34. Nd2 {[%clk 0:00:17]} 34... e5
{[%clk 0:00:50.5]} 35. Nb3 {[%clk 0:00:15.9]} 35... Bd6 {[%clk 0:00:44.7]} 36.
Nc5 {[%clk 0:00:15.8]} 36... Bf5 {[%clk 0:00:38.1]} 37. Nb7 {[%clk 0:00:12.2]}
37... Bc7 {[%clk 0:00:30.9]} 38. Nc5 {[%clk 0:00:08.5]} 38... Bb6 {[%clk
0:00:26.9]} 39. Ra8+ {[%clk 0:00:09]} 39... Kf7 {[%clk 0:00:23.3]} 40. Rb8
{[%clk 0:00:09.7]} 40... Bxc5 {[%clk 0:00:13.4]} 41. dxc5 {[%clk 0:00:10.6]}
41... d4 {[%clk 0:00:12.5]} 42. exd4 {[%clk 0:00:09.3]} 42... exd4 {[%clk
0:00:13.4]} 43. c6 {[%clk 0:00:09.4]} 43... Be6 {[%clk 0:00:13.1]} 44. c7 {[%clk
0:00:08.5]} 44... Rc5 {[%clk 0:00:13.8]} 45. h3 {[%clk 0:00:07.3]} 45... d3
{[%clk 0:00:14.2]} 46. Rd8 {[%clk 0:00:06.8]} 46... Rc3 {[%clk 0:00:11]} 47. Kh2
{[%clk 0:00:05.7]} 47... g5 {[%clk 0:00:11.2]} 48. Bd6 {[%clk 0:00:05.8]} 48...
Kg6 {[%clk 0:00:11]} 49. Bg3 {[%clk 0:00:03.5]} 49... Bf5 {[%clk 0:00:11.2]} 50.
Re8 {[%clk 0:00:03]} 50... Rc2 {[%clk 0:00:11.1]} 51. Rd8 {[%clk 0:00:03.6]}
51... Kf7 {[%clk 0:00:10.4]} 52. Rd6 {[%clk 0:00:03.4]} 52... Ke7 {[%clk
0:00:10.6]} 53. Rd8 {[%clk 0:00:03.5]} 53... Bd7 {[%clk 0:00:10.6]} 54. Bd6+
{[%clk 0:00:02.8]} 54... Kxd6 {[%clk 0:00:10]} 55. c8=Q {[%clk 0:00:03.2]} 55...
Rxc8 {[%clk 0:00:10.4]} 0-1

[Event "Early-Titled-Tuesday-Blitz-May-07-2024"]
[Site "Chess.com"]
[Date "2024.05.07"]
[Round "11"]
[White "praveenb2002"]
[Black "SRob2003"]
[Result "1-0"]
[WhiteElo "2861"]
[BlackElo "2666"]
[TimeControl "180+1"]
[EndTime "10:15:23 PDT"]
[Termination "praveenb2002 won on time"]

1. c4 {[%clk 0:03:00.9]} 1... e5 {[%clk 0:02:59.6]} 2. g3 {[%clk 0:03:00.8]}
2... c6 {[%clk 0:02:53.4]} 3. Nf3 {[%clk 0:02:54.3]} 3... e4 {[%clk 0:02:53.3]}
4. Nd4 {[%clk 0:02:54]} 4... d5 {[%clk 0:02:54.1]} 5. cxd5 {[%clk 0:02:49.8]}
5... Qxd5 {[%clk 0:02:55]} 6. Nc2 {[%clk 0:02:49.6]} 6... Nf6 {[%clk 0:02:54.9]}
7. Nc3 {[%clk 0:02:45.4]} 7... Qe5 {[%clk 0:02:54.3]} 8. Bg2 {[%clk 0:02:43.7]}
8... Na6 {[%clk 0:02:54.2]} 9. O-O {[%clk 0:02:42.2]} 9... Be7 {[%clk
0:02:49.1]} 10. d3 {[%clk 0:02:33]} 10... exd3 {[%clk 0:02:46.6]} 11. exd3
{[%clk 0:02:33.9]} 11... O-O {[%clk 0:02:43.9]} 12. Re1 {[%clk 0:02:29.5]} 12...
Qc7 {[%clk 0:02:43.8]} 13. Bf4 {[%clk 0:02:27.5]} 13... Qd8 {[%clk 0:02:36]} 14.
d4 {[%clk 0:02:25]} 14... Be6 {[%clk 0:02:34.1]} 15. Ne3 {[%clk 0:02:24.8]}
15... Nc7 {[%clk 0:02:33.9]} 16. Qa4 {[%clk 0:02:21.5]} 16... h6 {[%clk
0:02:22]} 17. Rac1 {[%clk 0:02:18.8]} 17... Bd6 {[%clk 0:02:13.1]} 18. Be5
{[%clk 0:02:12.1]} 18... Re8 {[%clk 0:01:58.4]} 19. a3 {[%clk 0:02:03.4]} 19...
Nfd5 {[%clk 0:01:27.7]} 20. Nexd5 {[%clk 0:01:31.8]} 20... Nxd5 {[%clk
0:01:26.7]} 21. Nxd5 {[%clk 0:01:27]} 21... cxd5 {[%clk 0:01:26.6]} 22. Qb5
{[%clk 0:01:18.3]} 22... Bxe5 {[%clk 0:01:01.9]} 23. Rxe5 {[%clk 0:01:16.6]}
23... Rc8 {[%clk 0:01:01.2]} 24. Rce1 {[%clk 0:01:13]} 24... Rf8 {[%clk
0:00:29]} 25. Bxd5 {[%clk 0:00:57]} 25... Bxd5 {[%clk 0:00:20.2]} 26. Rxd5
{[%clk 0:00:57.1]} 26... Qf6 {[%clk 0:00:21.1]} 27. Qd3 {[%clk 0:00:50.6]} 27...
Rfd8 {[%clk 0:00:19.7]} 28. Rxd8+ {[%clk 0:00:48.1]} 28... Rxd8 {[%clk
0:00:20.6]} 29. Rd1 {[%clk 0:00:46.9]} 29... Rd5 {[%clk 0:00:20.5]} 30. Qe4
{[%clk 0:00:44.8]} 30... Qd6 {[%clk 0:00:20.9]} 31. Rc1 {[%clk 0:00:37.6]} 31...
Qd7 {[%clk 0:00:18.9]} 32. Rd1 {[%clk 0:00:30.1]} 32... g6 {[%clk 0:00:19.3]}
33. b4 {[%clk 0:00:29.1]} 33... h5 {[%clk 0:00:19.9]} 34. Rd3 {[%clk 0:00:28]}
34... a6 {[%clk 0:00:20.2]} 35. Qf4 {[%clk 0:00:28]} 35... b5 {[%clk 0:00:18]}
36. Qf6 {[%clk 0:00:26.7]} 36... Rd6 {[%clk 0:00:17.3]} 37. Qe5 {[%clk
0:00:26.7]} 37... Rd5 {[%clk 0:00:17.7]} 38. Qb8+ {[%clk 0:00:24.5]} 38... Kh7
{[%clk 0:00:18.2]} 39. Qf4 {[%clk 0:00:25]} 39... Rf5 {[%clk 0:00:16.9]} 40. Qe3
{[%clk 0:00:24]} 40... Rd5 {[%clk 0:00:16.4]} 41. h4 {[%clk 0:00:24.3]} 41...
Qf5 {[%clk 0:00:14.3]} 42. Kg2 {[%clk 0:00:23.2]} 42... Qd7 {[%clk 0:00:14.2]}
43. Qe4 {[%clk 0:00:22.8]} 43... Qd6 {[%clk 0:00:13.4]} 44. Rf3 {[%clk
0:00:20.7]} 44... Qd7 {[%clk 0:00:12.7]} 45. Rf4 {[%clk 0:00:21.1]} 45... Kg8
{[%clk 0:00:12.3]} 46. Qe3 {[%clk 0:00:20.6]} 46... Rd6 {[%clk 0:00:11.5]} 47.
Re4 {[%clk 0:00:20.8]} 47... Qc6 {[%clk 0:00:11.4]} 48. Kh2 {[%clk 0:00:20.4]}
48... Rf6 {[%clk 0:00:09.1]} 49. Re8+ {[%clk 0:00:20]} 49... Kg7 {[%clk
0:00:09.7]} 50. Re5 {[%clk 0:00:17.5]} 50... Qc2 {[%clk 0:00:09.3]} 51. Kg2
{[%clk 0:00:17.2]} 51... Qc6+ {[%clk 0:00:09.8]} 52. d5 {[%clk 0:00:17.9]} 52...
Qc4 {[%clk 0:00:09.2]} 53. Qe4 {[%clk 0:00:16.7]} 53... Qa2 {[%clk 0:00:07.9]}
54. Qe3 {[%clk 0:00:16.8]} 54... Qc2 {[%clk 0:00:05.6]} 55. Rg5 {[%clk
0:00:15.1]} 55... Qd1 {[%clk 0:00:05.6]} 56. Re5 {[%clk 0:00:13.3]} 56... Qc2
{[%clk 0:00:05.5]} 57. Re8 {[%clk 0:00:13.3]} 57... Qf5 {[%clk 0:00:04.3]} 58.
Qc5 {[%clk 0:00:11.8]} 58... Qf3+ {[%clk 0:00:03.9]} 59. Kg1 {[%clk 0:00:11.5]}
59... Qd1+ {[%clk 0:00:03.2]} 60. Kh2 {[%clk 0:00:12]} 60... Qf3 {[%clk
0:00:03.9]} 61. Qf8+ {[%clk 0:00:11.8]} 1-0

[Event "Early-Titled-Tuesday-Blitz-May-07-2024"]
[Site "Chess.com"]
[Date "2024.05.07"]
[Round "11"]
[White "LoaySameer"]
[Black "BashirovKemal"]
[Result "0-1"]
[WhiteElo "2544"]
[BlackElo "2685"]
[TimeControl "180+1"]
[EndTime "10:15:23 PDT"]
[Termination "BashirovKemal won on time"]

1. Nf3 {[%clk 0:03:00.9]} 1... Nf6 {[%clk 0:02:59.8]} 2. g3 {[%clk 0:03:01.1]}
2... e6 {[%clk 0:02:59.2]} 3. Bg2 {[%clk 0:03:01.6]} 3... d5 {[%clk 0:02:59.4]}
4. O-O {[%clk 0:03:02.3]} 4... c5 {[%clk 0:02:58]} 5. d3 {[%clk 0:03:02.6]} 5...
Nc6 {[%clk 0:02:57.7]} 6. Nbd2 {[%clk 0:03:03.3]} 6... Be7 {[%clk 0:02:58.2]} 7.
e4 {[%clk 0:03:03.9]} 7... O-O {[%clk 0:02:58.5]} 8. Re1 {[%clk 0:03:04.6]} 8...
b5 {[%clk 0:02:58.4]} 9. exd5 {[%clk 0:03:05.2]} 9... exd5 {[%clk 0:02:58.5]}
10. d4 {[%clk 0:03:05.7]} 10... c4 {[%clk 0:02:48.5]} 11. Nf1 {[%clk 0:03:05.9]}
11... Bf5 {[%clk 0:02:44.9]} 12. a4 {[%clk 0:02:57.2]} 12... b4 {[%clk
0:02:41.5]} 13. Ne5 {[%clk 0:02:57.5]} 13... Rc8 {[%clk 0:02:40]} 14. Ne3 {[%clk
0:02:57.2]} 14... Be6 {[%clk 0:02:33.7]} 15. N3xc4 {[%clk 0:02:55.7]} 15... Nxd4
{[%clk 0:02:29.9]} 16. Qxd4 {[%clk 0:02:31.8]} 16... dxc4 {[%clk 0:02:25.9]} 17.
Qxd8 {[%clk 0:02:31.6]} 17... Rfxd8 {[%clk 0:02:25.3]} 18. Nc6 {[%clk
0:02:30.7]} 18... Rd7 {[%clk 0:02:14.8]} 19. Bg5 {[%clk 0:02:21.1]} 19... Bc5
{[%clk 0:01:55.9]} 20. Rad1 {[%clk 0:02:15]} 20... Rxd1 {[%clk 0:01:28.4]} 21.
Rxd1 {[%clk 0:02:15.9]} 21... h6 {[%clk 0:01:23.2]} 22. Be3 {[%clk 0:02:08]}
22... Bf8 {[%clk 0:00:53.7]} 23. Bxa7 {[%clk 0:02:08]} 23... Bd7 {[%clk
0:00:41]} 24. a5 {[%clk 0:01:11.2]} 24... Bxc6 {[%clk 0:00:37.9]} 25. Bxc6
{[%clk 0:01:12.1]} 25... Rxc6 {[%clk 0:00:38.5]} 26. Bb6 {[%clk 0:01:08.2]}
26... Bd6 {[%clk 0:00:35.6]} 27. Kg2 {[%clk 0:00:51.1]} 27... Be5 {[%clk
0:00:34.5]} 28. Rd8+ {[%clk 0:00:49.5]} 28... Kh7 {[%clk 0:00:33.2]} 29. b3
{[%clk 0:00:45.4]} 29... cxb3 {[%clk 0:00:31.7]} 30. cxb3 {[%clk 0:00:46.3]}
30... Kg6 {[%clk 0:00:28.4]} 31. f4 {[%clk 0:00:40.5]} 31... Bd6 {[%clk
0:00:24.9]} 32. Kf3 {[%clk 0:00:31.9]} 32... Bc5 {[%clk 0:00:22.3]} 33. Rb8
{[%clk 0:00:18.4]} 33... Nd5 {[%clk 0:00:15]} 34. Bd8 {[%clk 0:00:12.6]} 34...
Be7 {[%clk 0:00:07.4]} 35. Bxe7 {[%clk 0:00:09.7]} 35... Nxe7 {[%clk 0:00:07.4]}
36. Rxb4 {[%clk 0:00:10.6]} 36... Nd5 {[%clk 0:00:06.1]} 37. Rb5 {[%clk
0:00:07.4]} 37... Nc7 {[%clk 0:00:04.6]} 38. Rb6 {[%clk 0:00:07.7]} 38... Rxb6
{[%clk 0:00:05]} 39. axb6 {[%clk 0:00:08.6]} 39... Na6 {[%clk 0:00:05.5]} 40. b4
{[%clk 0:00:08.2]} 40... Kf5 {[%clk 0:00:05.1]} 41. Ke3 {[%clk 0:00:07.2]} 41...
Ke6 {[%clk 0:00:04.6]} 42. Kd4 {[%clk 0:00:07.6]} 42... Kd6 {[%clk 0:00:05.2]}
43. b5 {[%clk 0:00:08.2]} 43... Nb8 {[%clk 0:00:05.5]} 44. Ke4 {[%clk
0:00:08.5]} 44... Nd7 {[%clk 0:00:05.6]} 45. b7 {[%clk 0:00:08.2]} 45... Nc5+
{[%clk 0:00:06]} 46. Kd4 {[%clk 0:00:07.9]} 46... Nxb7 {[%clk 0:00:06.2]} 47. g4
{[%clk 0:00:07.8]} 47... Nd8 {[%clk 0:00:05.1]} 48. f5 {[%clk 0:00:07.5]} 48...
Nb7 {[%clk 0:00:04.9]} 49. h4 {[%clk 0:00:07.8]} 49... Na5 {[%clk 0:00:03.7]}
50. g5 {[%clk 0:00:06.8]} 50... hxg5 {[%clk 0:00:04.1]} 51. hxg5 {[%clk
0:00:07.7]} 51... f6 {[%clk 0:00:04.4]} 52. gxf6 {[%clk 0:00:03.4]} 52... gxf6
{[%clk 0:00:05.3]} 53. Ke4 {[%clk 0:00:03.9]} 53... Kc5 {[%clk 0:00:05.7]} 54.
Kf4 {[%clk 0:00:02.3]} 54... Nc4 {[%clk 0:00:06.2]} 55. Kg4 {[%clk 0:00:02.7]}
55... Kd5 {[%clk 0:00:06.8]} 56. Kh5 {[%clk 0:00:02.2]} 56... Ke5 {[%clk
0:00:06.8]} 57. Kg6 {[%clk 0:00:02.7]} 57... Nb6 {[%clk 0:00:07.4]} 0-1

[Event "Early-Titled-Tuesday-Blitz-May-07-2024"]
[Site "Chess.com"]
[Date "2024.05.07"]
[Round "11"]
[White "MikeWizard"]
[Black "Louis-Paulsen-Fan"]
[Result "1/2-1/2"]
[WhiteElo "2067"]
[BlackElo "2350"]
[TimeControl "180+1"]
[EndTime "10:15:30 PDT"]
[Termination "Game drawn by repetition"]

1. d4 {[%clk 0:02:56.2]} 1... d5 {[%clk 0:02:59.5]} 2. c4 {[%clk 0:02:56.1]}
2... e6 {[%clk 0:02:59.8]} 3. Nc3 {[%clk 0:02:55.2]} 3... c5 {[%clk 0:03:00]} 4.
cxd5 {[%clk 0:02:53]} 4... exd5 {[%clk 0:03:00.9]} 5. Nf3 {[%clk 0:02:52.9]}
5... Nc6 {[%clk 0:03:01]} 6. g3 {[%clk 0:02:52.8]} 6... c4 {[%clk 0:03:01.6]} 7.
Bg2 {[%clk 0:02:52.5]} 7... Bb4 {[%clk 0:03:02.2]} 8. O-O {[%clk 0:02:51.9]}
8... Nge7 {[%clk 0:03:02.8]} 9. Bf4 {[%clk 0:02:46.8]} 9... O-O {[%clk
0:03:01.8]} 10. Ne5 {[%clk 0:02:44.1]} 10... Be6 {[%clk 0:02:56.8]} 11. a3
{[%clk 0:02:29.2]} 11... Ba5 {[%clk 0:02:54.3]} 12. e3 {[%clk 0:02:23.2]} 12...
Rc8 {[%clk 0:02:26.1]} 13. Nxc6 {[%clk 0:02:20.3]} 13... bxc6 {[%clk 0:02:22.7]}
14. e4 {[%clk 0:02:17.5]} 14... Bxc3 {[%clk 0:02:06.4]} 15. bxc3 {[%clk
0:02:15.9]} 15... dxe4 {[%clk 0:02:06.7]} 16. Bxe4 {[%clk 0:02:15.2]} 16... Bd5
{[%clk 0:02:06.9]} 17. Re1 {[%clk 0:02:06.8]} 17... Bxe4 {[%clk 0:02:03.3]} 18.
Rxe4 {[%clk 0:02:06.3]} 18... Nd5 {[%clk 0:02:03.6]} 19. Bd2 {[%clk 0:02:01]}
19... Qa5 {[%clk 0:01:59.5]} 20. Re5 {[%clk 0:01:53.6]} 20... Rfe8 {[%clk
0:01:50.9]} 21. Qg4 {[%clk 0:01:50.8]} 21... Rcd8 {[%clk 0:01:21]} 22. Rxe8+
{[%clk 0:01:31]} 22... Rxe8 {[%clk 0:01:21]} 23. Qd7 {[%clk 0:01:30.8]} 23...
Qd8 {[%clk 0:00:48.8]} 24. Qxc6 {[%clk 0:01:28.9]} 24... Re2 {[%clk 0:00:45.6]}
25. Rb1 {[%clk 0:01:07.1]} 25... h6 {[%clk 0:00:40.8]} 26. Be1 {[%clk
0:00:50.7]} 26... Qe7 {[%clk 0:00:38.9]} 27. Kf1 {[%clk 0:00:44.3]} 27... Nf6
{[%clk 0:00:19.2]} 28. Qxc4 {[%clk 0:00:42.6]} 28... Re4 {[%clk 0:00:15.4]} 29.
Rb8+ {[%clk 0:00:38.6]} 29... Kh7 {[%clk 0:00:15.8]} 30. Qd3 {[%clk 0:00:38.4]}
30... g6 {[%clk 0:00:16.4]} 31. c4 {[%clk 0:00:33.5]} 31... Rxe1+ {[%clk
0:00:16]} 32. Kg2 {[%clk 0:00:32.5]} 32... Rc1 {[%clk 0:00:10.5]} 33. c5 {[%clk
0:00:30.8]} 33... Qe1 {[%clk 0:00:10.4]} 34. Kh3 {[%clk 0:00:26.6]} 34... h5
{[%clk 0:00:10.1]} 35. Qf3 {[%clk 0:00:23.4]} 35... Kg7 {[%clk 0:00:07]} 36. Rb7
{[%clk 0:00:20.5]} 36... Qf1+ {[%clk 0:00:06.1]} 37. Qg2 {[%clk 0:00:19.8]}
37... Qxg2+ {[%clk 0:00:06.3]} 38. Kxg2 {[%clk 0:00:19.5]} 38... Rd1 {[%clk
0:00:06.9]} 39. c6 {[%clk 0:00:19.4]} 39... Rxd4 {[%clk 0:00:06.9]} 40. c7
{[%clk 0:00:19.6]} 40... Rc4 {[%clk 0:00:07.4]} 41. Rxa7 {[%clk 0:00:19.7]}
41... Nd5 {[%clk 0:00:06.9]} 42. Kf3 {[%clk 0:00:16.5]} 42... Rxc7 {[%clk
0:00:06.6]} 43. Rxc7 {[%clk 0:00:15.9]} 43... Nxc7 {[%clk 0:00:07.5]} 44. Ke4
{[%clk 0:00:14.8]} 44... Kf6 {[%clk 0:00:07.6]} 45. Kd4 {[%clk 0:00:15]} 45...
Kf5 {[%clk 0:00:07.6]} 46. Kc5 {[%clk 0:00:15]} 46... Ke4 {[%clk 0:00:06.1]} 47.
a4 {[%clk 0:00:13.6]} 47... Kf3 {[%clk 0:00:05.2]} 48. Kc6 {[%clk 0:00:13.6]}
48... Na6 {[%clk 0:00:05.2]} 49. Kb6 {[%clk 0:00:13.2]} 49... Nb4 {[%clk
0:00:05.5]} 50. Kc5 {[%clk 0:00:12.1]} 50... Na6+ {[%clk 0:00:04.6]} 51. Kb5
{[%clk 0:00:11.8]} 51... Nb8 {[%clk 0:00:04.1]} 52. Kb6 {[%clk 0:00:11.6]} 52...
Kxf2 {[%clk 0:00:04]} 53. a5 {[%clk 0:00:11.1]} 53... Nd7+ {[%clk 0:00:04.2]}
54. Kc7 {[%clk 0:00:10.7]} 54... Nc5 {[%clk 0:00:04.1]} 55. Kc6 {[%clk
0:00:10.9]} 55... Na6 {[%clk 0:00:03.9]} 56. Kb6 {[%clk 0:00:11.1]} 56... Nb4
{[%clk 0:00:03.3]} 57. Kb5 {[%clk 0:00:10.9]} 57... Nd5 {[%clk 0:00:03.6]} 58.
Kc5 {[%clk 0:00:09.1]} 58... Nc7 {[%clk 0:00:03.5]} 59. Kc6 {[%clk 0:00:08.4]}
59... Na6 {[%clk 0:00:03.2]} 60. Kb6 {[%clk 0:00:08.4]} 60... Nb4 {[%clk
0:00:03.6]} 61. Kb5 {[%clk 0:00:08.1]} 61... Nd5 {[%clk 0:00:03.8]} 62. Kc5
{[%clk 0:00:07.9]} 62... Nc7 {[%clk 0:00:04]} 63. Kc6 {[%clk 0:00:07.5]} 63...
Na6 {[%clk 0:00:04]} 1/2-1/2